bitfinex/quotes_BTCUSD_20241018
["timestamp","ask_amount","ask_price","bid_price","bid_amount"]
[1729280106900,0.17195915,68690.0,68689.0,0.19759151]
[1729280107127,0.19598897,68690.0,68689.0,0.19759151]
[1729280107362,0.20673294,68690.0,68689.0,0.19759151]
[1729280108479,0.20674008,68690.0,68689.0,0.19759151]
[1729280108943,0.2174206,68690.0,68689.0,0.19759151]
[1729280109162,0.20673751,68690.0,68689.0,0.19759151]
[1729280109817,0.023,68689.0,68683.0,0.100829]
[1729280110039,0.18531159,68688.0,68683.0,0.100829]
[1729280110254,0.22809673,68688.0,68683.0,0.100829]
[1729280110466,0.24518786,68688.0,68683.0,0.100829]
[1729280110676,0.22809673,68688.0,68683.0,0.100829]
[1729280110891,0.24518786,68688.0,68683.0,0.100829]
[1729280111551,0.22809673,68688.0,68683.0,0.100829]
[1729280112416,0.24526903,68688.0,68683.0,0.100829]
[1729280112636,0.22812795,68688.0,68683.0,0.100829]
[1729280113114,0.24526903,68688.0,68683.0,0.100829]
[1729280114639,0.27122436,68688.0,68683.0,0.100829]
[1729280115282,0.24526903,68688.0,68683.0,0.100829]
[1729280115516,0.24526903,68688.0,68683.0,0.000829]
[1729280115739,0.023,68687.0,68677.0,0.1]
[1729280115969,0.023,68687.0,68684.0,0.21826913]
[1729280116193,0.17195915,68685.0,68677.0,0.1]
[1729280116412,0.06257059,68684.0,68677.0,0.1]
[1729280116628,0.08557059,68683.0,68677.0,0.1]
[1729280116872,0.023,68681.0,68677.0,0.1]
[1729280117087,0.17195915,68678.0,68677.0,0.1]
[1729280117306,0.23452974,68678.0,68677.0,0.1]
[1729280117524,0.24515228,68678.0,68677.0,0.1]
[1729280118391,0.25945655,68678.0,68677.0,0.1]
[1729280118601,0.26673345,68678.0,68677.0,0.1]
[1729280119069,0.25945655,68678.0,68677.0,0.1]
[1729280119285,0.26673345,68678.0,68677.0,0.1]
[1729280119504,0.25242918,68678.0,68677.0,0.1]
[1729280119957,0.24176642,68678.0,68677.0,0.1]
[1729280120208,0.25271363,68678.0,68677.0,0.1]
[1729280120434,0.023,68677.0,68675.0,0.0782]
[1729280120645,0.023,68677.0,68638.0,0.0007]
[1729280120646,0.023,68675.0,68669.0,0.0761]
[1729280120865,0.023,68669.0,68662.0,0.0761]
[1729280121108,0.03493181,68668.0,68662.0,0.0761]
[1729280121327,0.03493181,68668.0,68660.0,0.21909813]
[1729280121328,0.023,68665.0,68660.0,0.21909813]
[1729280121545,0.03493181,68664.0,68660.0,0.21909813]
[1729280121767,0.023,68663.0,68660.0,0.21909813]
[1729280121975,0.02239512,68661.0,68660.0,0.21909813]
[1729280122187,0.23423153,68661.0,68660.0,0.21909813]
[1729280122428,0.21183641,68661.0,68660.0,0.100829]
[1729280122652,0.22254733,68661.0,68660.0,0.100829]
[1729280122865,0.22254733,68661.0,68660.0,0.000829]
[1729280123053,0.24554733,68661.0,68660.0,0.000829]
[1729280123528,0.27954024,68661.0,68660.0,0.000829]
[1729280123753,0.25282482,68661.0,68660.0,0.000829]
[1729280123974,0.21762996,68661.0,68660.0,0.000829]
[1729280124243,0.25287761,68661.0,68660.0,0.000829]
[1729280125994,0.24513782,68661.0,68660.0,0.000829]
[1729280127093,0.25246512,68661.0,68660.0,0.000829]
[1729280128041,0.23447146,68661.0,68660.0,0.000829]
[1729280128263,0.26248849,68661.0,68660.0,0.000829]
[1729280128522,0.24524835,68661.0,68660.0,0.000829]
[1729280131379,0.22224835,68661.0,68660.0,0.000829]
[1729280131607,0.22224835,68661.0,68660.0,0.372429]
[1729280132126,0.21839399,68661.0,68660.0,0.372429]
[1729280132357,0.18337269,68661.0,68660.0,0.372429]
[1729280132596,0.18337269,68661.0,68660.0,0.364389]
[1729280132597,0.09234318,68661.0,68660.0,0.364389]
[1729280132840,0.0498964,68676.0,68670.0,0.1]
[1729280132841,0.01724123,68671.0,68670.0,0.1]
[1729280133066,0.14895915,68675.0,68673.0,0.1813]
[1729280133322,0.21826913,68684.0,68674.0,0.1]
[1729280133558,0.15644402,68687.0,68674.0,0.1]
[1729280133812,0.14895915,68683.0,68674.0,0.1]
[1729280134267,0.023,68682.0,68674.0,0.1]
[1729280134491,0.14895915,68681.0,68674.0,0.10083]
[1729280134921,0.023,68680.0,68674.0,0.10083]
[1729280135136,0.14895915,68679.0,68674.0,0.10083]
[1729280135356,0.14895915,68678.0,68675.0,0.21826913]
[1729280135593,0.023,68677.0,68676.0,0.1]
[1729280135811,0.14895915,68677.0,68676.0,0.1767]
[1729280135997,0.17195915,68677.0,68676.0,0.1767]
[1729280136677,0.14895915,68677.0,68676.0,0.0767]
[1729280137536,0.17195915,68677.0,68676.0,0.0767]
[1729280138849,0.023,68676.0,68674.0,0.00083]
[1729280139072,0.17195915,68675.0,68674.0,0.00083]
[1729280140360,0.17872088,68675.0,68674.0,0.00083]
[1729280140801,0.17872088,68675.0,68674.0,0.08403]
[1729280141238,0.14895915,68675.0,68674.0,0.08403]
[1729280141699,0.15571744,68675.0,68674.0,0.06946]
[1729280144743,0.16918484,68675.0,68674.0,0.06946]
[1729280144958,0.16918485,68675.0,68674.0,0.06946]
[1729280145170,0.16918484,68675.0,68674.0,0.06946]
[1729280146489,0.17084484,68675.0,68674.0,0.06946]
[1729280147127,0.16734484,68675.0,68674.0,0.06946]
[1729280147343,0.15387744,68675.0,68674.0,0.06946]
[1729280149061,0.15387744,68675.0,68674.0,0.07142]
[1729280151432,0.15387744,68675.0,68674.0,0.06946]
[1729280151872,0.15387744,68675.0,68674.0,0.07142]
[1729280153721,0.15387744,68675.0,68674.0,0.06946]
[1729280155385,0.023,68674.0,68673.0,0.1]
[1729280155623,0.18542682,68674.0,68669.0,0.0767]
[1729280155872,0.023,68672.0,68669.0,0.1767]
[1729280156118,0.14895915,68671.0,68669.0,0.1767]
[1729280156340,0.15574312,68671.0,68669.0,0.1767]
[1729280157423,0.013479,68670.0,68669.0,0.1767]
[1729280157632,0.16243815,68670.0,68669.0,0.0767]
[1729280157845,0.15574248,68670.0,68669.0,0.0767]
[1729280158067,0.15574248,68670.0,68669.0,0.077529]
[1729280158530,0.16922879,68670.0,68669.0,0.077529]
[1729280160475,0.18002653,68670.0,68669.0,0.077529]
[1729280161343,0.20156243,68670.0,68669.0,0.077529]
[1729280161769,0.21507716,68670.0,68669.0,0.077529]
[1729280161977,0.2016933,68670.0,68669.0,0.077529]
[1729280162196,0.21520824,68670.0,68669.0,0.077529]
[1729280162419,0.21520824,68670.0,68669.0,0.000829]
[1729280163077,0.21520824,68670.0,68669.0,0.250639]
[1729280165730,0.19089505,68670.0,68669.0,0.250639]
[1729280165945,0.21523146,68670.0,68669.0,0.250639]
[1729280166152,0.2017096,68670.0,68669.0,0.250639]
[1729280166370,0.23822895,68670.0,68669.0,0.250639]
[1729280166581,0.25553445,68670.0,68669.0,0.250639]
[1729280166785,0.2771665,68670.0,68669.0,0.250639]
[1729280173361,0.17874248,68670.0,68669.0,0.250639]
[1729280173587,0.25550945,68670.0,68669.0,0.250639]
[1729280173810,0.27713395,68670.0,68669.0,0.250639]
[1729280177350,0.34187347,68670.0,68669.0,0.250639]
[1729280177980,0.3419753,68670.0,68669.0,0.250639]
[1729280178426,0.21520985,68670.0,68669.0,0.518139]
[1729280178643,0.18007004,68670.0,68669.0,0.518139]
[1729280178889,0.16925779,68670.0,68669.0,0.518139]
[1729280179113,0.02029865,68670.0,68669.0,1.249998]
[1729280179376,0.00678333,68670.0,68669.0,3.391884]
[1729280179557,0.00166,68675.0,68669.0,3.120017]
[1729280179771,0.16247254,68674.0,68673.0,0.37586]
[1729280180267,0.20841674,68674.0,68673.0,0.3739]
[1729280180496,0.38529767,68674.0,68669.0,0.150639]
[1729280180719,0.10945541,68670.0,68669.0,0.150639]
[1729280180934,0.50554152,68670.0,68669.0,0.150639]
[1729280181153,0.52278469,68670.0,68669.0,0.150639]
[1729280181796,0.52278469,68670.0,68669.0,0.250639]
[1729280184922,0.43634612,68670.0,68669.0,0.250639]
[1729280185126,0.27677932,68670.0,68669.0,0.250639]
[1729280185353,0.34159002,68670.0,68669.0,0.250639]
[1729280185564,0.27677932,68670.0,68669.0,0.250639]
[1729280186012,0.34158876,68670.0,68669.0,0.250639]
[1729280186457,0.27677932,68670.0,68669.0,0.250639]
[1729280186669,0.34158773,68670.0,68669.0,0.250639]
[1729280188015,0.34158591,68670.0,68669.0,0.250639]
[1729280188753,0.34157097,68670.0,68669.0,0.250639]
[1729280189182,0.27676438,68670.0,68669.0,0.250639]
[1729280189395,0.34157709,68670.0,68669.0,0.250639]
[1729280190349,0.27676438,68670.0,68669.0,0.250639]
[1729280190824,0.34157709,68670.0,68669.0,0.250639]
[1729280191051,0.29697933,68670.0,68669.0,0.23837212]
[1729280191300,0.25376438,68670.0,68669.0,0.23837212]
[1729280191522,0.29698183,68670.0,68669.0,0.23837212]
[1729280191983,0.2618635,68670.0,68669.0,0.23837212]
[1729280192193,0.29699804,68670.0,68669.0,0.23837212]
[1729280193447,0.29699804,68670.0,68669.0,0.23920112]
[1729280196443,0.25378059,68670.0,68669.0,0.23920112]
[1729280197849,0.25378059,68670.0,68669.0,0.51140112]
[1729280198089,0.19324092,68670.0,68669.0,1.00709812]
[1729280198315,0.16891695,68670.0,68669.0,1.00709812]
[1729280198742,0.16247247,68670.0,68669.0,1.00709812]
[1729280198940,0.16247247,68670.0,68669.0,0.63531412]
[1729280199359,0.15540003,68670.0,68669.0,0.63531412]
[1729280199589,0.16891311,68670.0,68669.0,0.63531412]
[1729280200436,0.17972145,68670.0,68669.0,0.51140112]
[1729280200651,0.21484797,68670.0,68669.0,0.51140112]
[1729280201342,0.39175723,68670.0,68669.0,0.23920112]
[1729280201565,0.43589503,68670.0,68669.0,0.13920112]
[1729280201800,0.47804196,68670.0,68669.0,0.13920112]
[1729280202070,0.47804196,68670.0,68652.0,0.0819]
[1729280202071,0.192,68668.0,68652.0,0.0819]
[1729280202296,0.08646822,68664.0,68652.0,0.0819]
[1729280202522,0.1080858,68666.0,68650.0,0.00083]
[1729280202523,0.023,68661.0,68650.0,0.00083]
[1729280202751,0.1213573,68661.0,68650.0,0.00083]
[1729280202967,0.28733284,68661.0,68650.0,0.00083]
[1729280203926,0.28733284,68661.0,68655.0,0.1]
[1729280204361,0.309807,68661.0,68655.0,0.1]
[1729280204592,0.28733284,68661.0,68655.0,0.1]
[1729280206475,0.28703859,68661.0,68655.0,0.1]
[1729280206689,0.21678298,68661.0,68655.0,0.1]
[1729280206911,0.27595709,68661.0,68655.0,0.1]
[1729280207171,0.32720243,68661.0,68655.0,0.1]
[1729280207382,0.04666398,68661.0,68655.0,0.1]
[1729280207641,0.08456432,68661.0,68655.0,0.1]
[1729280207859,0.08456432,68661.0,68657.0,0.02278296]
[1729280207860,0.04144022,68661.0,68657.0,0.02278296]
[1729280208079,0.05221497,68661.0,68657.0,0.02278296]
[1729280208302,0.20117412,68661.0,68657.0,0.02278296]
[1729280208748,0.21464382,68661.0,68657.0,0.02278296]
[1729280208986,0.23351848,68661.0,68657.0,0.02278296]
[1729280209206,0.19039824,68661.0,68657.0,0.02278296]
[1729280210060,0.20387105,68661.0,68657.0,0.02278296]
[1729280210296,0.25776046,68661.0,68657.0,0.02278296]
[1729280210515,0.29655053,68661.0,68657.0,0.02278296]
[1729280210964,0.29654612,68661.0,68657.0,0.02278296]
[1729280211200,0.27643614,68661.0,68657.0,0.02278296]
[1729280211412,0.35193614,68661.0,68657.0,0.02278296]
[1729280211871,0.27643614,68661.0,68657.0,0.02278296]
[1729280212079,0.5442209,68661.0,68657.0,0.02278296]
[1729280212308,0.45800094,68661.0,68657.0,0.02278296]
[1729280212757,0.33750032,68661.0,68657.0,0.02278296]
[1729280212972,0.40750944,68661.0,68657.0,0.02278296]
[1729280213184,0.43551364,68661.0,68657.0,0.02278296]
[1729280213414,0.34104153,68661.0,68657.0,0.02278296]
[1729280213642,0.2936298,68661.0,68657.0,0.02278296]
[1729280213870,0.35827625,68661.0,68657.0,0.02278296]
[1729280214330,0.33673092,68661.0,68657.0,0.02278296]
[1729280214540,0.30172616,68661.0,68657.0,0.02278296]
[1729280214752,0.29363068,68661.0,68657.0,0.02278296]
[1729280215203,0.35827713,68661.0,68657.0,0.02278296]
[1729280215437,0.29363068,68661.0,68657.0,0.02278296]
[1729280216329,0.33672909,68661.0,68657.0,0.02278296]
[1729280216543,0.27063068,68661.0,68659.0,0.1]
[1729280216774,0.27063068,68661.0,68659.0,0.1808]
[1729280217210,0.24908929,68661.0,68659.0,0.1808]
[1729280217423,0.21031425,68661.0,68659.0,0.1808]
[1729280217851,0.21031425,68661.0,68660.0,0.00279]
[1729280218075,0.19685088,68661.0,68660.0,0.00279]
[1729280218508,0.18608019,68661.0,68660.0,0.00279]
[1729280218952,0.18608019,68661.0,68660.0,0.00083]
[1729280220100,0.16884718,68661.0,68660.0,0.00083]
[1729280220523,0.16884718,68661.0,68660.0,0.00279]
[1729280221002,0.16884718,68661.0,68660.0,0.00083]
[1729280222104,0.18231033,68661.0,68660.0,0.00083]
[1729280222321,0.19308085,68661.0,68660.0,0.00083]
[1729280222985,0.19308564,68661.0,68660.0,0.32105913]
[1729280223198,0.16884928,68661.0,68660.0,0.10083]
[1729280223620,0.17962271,68661.0,68660.0,0.10083]
[1729280223834,0.17962271,68661.0,68660.0,0.00083]
[1729280224074,0.16884928,68661.0,68660.0,0.00083]
[1729280224298,0.17962367,68661.0,68660.0,0.00083]
[1729280224958,0.19309152,68661.0,68660.0,0.00083]
[1729280225175,0.16884928,68661.0,68660.0,0.00083]
[1729280225605,0.1796245,68661.0,68660.0,0.00083]
[1729280226059,0.16884928,68661.0,68660.0,0.00083]
[1729280226270,0.19309543,68661.0,68660.0,0.00083]
[1729280226718,0.16885348,68661.0,68660.0,0.00083]
[1729280226931,0.17962977,68661.0,68660.0,0.00279]
[1729280227204,0.01846366,68661.0,68660.0,0.57985913]
[1729280227426,0.01846366,68661.0,68660.0,0.36159]
[1729280227427,0.00633644,68661.0,68660.0,0.36159]
[1729280227848,0.001658,68669.0,68660.0,0.10279]
[1729280228059,0.16243317,68668.0,68667.0,0.08296]
[1729280228292,0.16877868,68668.0,68667.0,0.36076]
[1729280228520,0.16877868,68668.0,68667.0,0.3588]
[1729280230488,0.16878861,68668.0,68667.0,0.3588]
[1729280230711,0.17957648,68668.0,68667.0,0.3588]
[1729280230950,0.16878861,68668.0,68667.0,0.3588]
[1729280231387,0.17957614,68668.0,68667.0,0.3588]
[1729280232234,0.16878861,68668.0,68667.0,0.3588]
[1729280233875,0.17957387,68668.0,68663.0,0.1]
[1729280234090,0.2011482,68668.0,68663.0,0.31826913]
[1729280234317,0.05932417,68667.0,68663.0,0.31826913]
[1729280234565,0.18401743,68666.0,68663.0,0.31826913]
[1729280234837,0.0593273,68665.0,68663.0,0.31826913]
[1729280235066,0.15531318,68666.0,68663.0,0.31826913]
[1729280235067,0.18671401,68664.0,68663.0,0.31826913]
[1729280235282,0.17958299,68664.0,68663.0,0.31826913]
[1729280235494,0.17958299,68664.0,68663.0,0.1]
[1729280237144,0.20116034,68664.0,68663.0,0.1]
[1729280238092,0.20116034,68664.0,68660.0,0.00083]
[1729280238331,0.04584845,68663.0,68660.0,0.00083]
[1729280238542,0.1948076,68662.0,68660.0,0.00083]
[1729280238793,0.04584845,68661.0,68660.0,0.00083]
[1729280239028,0.1948076,68661.0,68660.0,0.00083]
[1729280239280,0.20115841,68661.0,68660.0,0.00083]
[1729280245576,0.20121633,68661.0,68660.0,0.00083]
[1729280246533,0.21847275,68661.0,68660.0,0.00083]
[1729280246768,0.20121633,68661.0,68660.0,0.00083]
[1729280247229,0.21847275,68661.0,68660.0,0.00083]
[1729280247458,0.20121633,68661.0,68660.0,0.00083]
[1729280247875,0.21847275,68661.0,68660.0,0.00083]
[1729280248155,0.20121633,68661.0,68660.0,0.00083]
[1729280248616,0.21847275,68661.0,68660.0,0.00083]
[1729280249065,0.23205118,68661.0,68660.0,0.00083]
[1729280249309,0.20124149,68661.0,68660.0,0.00083]
[1729280250522,0.21853816,68661.0,68660.0,0.00083]
[1729280250769,0.20124149,68661.0,68660.0,0.00279]
[1729280250978,0.21853816,68661.0,68660.0,0.00083]
[1729280251170,0.20124149,68661.0,68660.0,0.00083]
[1729280252827,0.20125966,68661.0,68660.0,0.00083]
[1729280253308,0.21855633,68661.0,68660.0,0.00083]
[1729280253541,0.21856007,68661.0,68660.0,0.00083]
[1729280256376,0.20125844,68661.0,68660.0,0.00083]
[1729280256616,0.28986484,68661.0,68660.0,0.00083]
[1729280256824,0.28985546,68661.0,68660.0,0.00083]
[1729280257757,0.2466477,68661.0,68660.0,0.00083]
[1729280258193,0.28985546,68661.0,68660.0,0.00083]
[1729280260114,0.30336861,68661.0,68660.0,0.00083]
[1729280260332,0.23205693,68661.0,68660.0,0.00083]
[1729280260550,0.21854378,68661.0,68660.0,0.08303]
[1729280260786,0.20124906,68661.0,68660.0,0.08772722]
[1729280261019,0.20124906,68661.0,68660.0,0.08968722]
[1729280261736,0.20124906,68661.0,68660.0,0.08499]
[1729280264083,0.20124906,68661.0,68660.0,0.08303]
[1729280265415,0.20124906,68661.0,68660.0,0.00083]
[1729280266085,0.21854378,68661.0,68660.0,0.00083]
[1729280266518,0.261792,68661.0,68660.0,0.00083]
[1729280267438,0.2266621,68661.0,68660.0,0.00083]
[1729280267656,0.23212964,68661.0,68660.0,0.00083]
[1729280267878,0.2321304,68661.0,68655.0,0.1]
[1729280268095,0.2084681,68660.0,68655.0,0.1]
[1729280268310,0.04598445,68659.0,68647.0,0.14570693]
[1729280268535,0.1949436,68658.0,68647.0,0.14570693]
[1729280268763,0.05234298,68657.0,68649.0,0.02278179]
[1729280268988,0.1949436,68656.0,68649.0,0.02278179]
[1729280269202,0.05234169,68655.0,68649.0,0.02278179]
[1729280269431,0.1949436,68654.0,68649.0,0.02278179]
[1729280269638,0.0523404,68653.0,68649.0,0.02278179]
[1729280269875,0.1949436,68652.0,68649.0,0.02278179]
[1729280270084,0.04596881,68651.0,68649.0,0.02278179]
[1729280270315,0.17329558,68650.0,68649.0,0.02278179]
[1729280270535,0.1796496,68650.0,68649.0,0.02278179]
[1729280271397,0.17964758,68650.0,68649.0,0.02278179]
[1729280271618,0.17964758,68650.0,68649.0,0.01681179]
[1729280273879,0.17964758,68650.0,68649.0,0.02281179]
[1729280274542,0.17964758,68650.0,68649.0,0.02364079]
[1729280274757,0.16883229,68650.0,68649.0,0.02364079]
[1729280274971,0.17964777,68650.0,68649.0,0.02364079]
[1729280275193,0.17964756,68650.0,68649.0,0.11824079]
[1729280275406,0.17964756,68650.0,68649.0,0.21824079]
[1729280275632,0.16883244,68650.0,68649.0,0.21824079]
[1729280279374,0.15531317,68650.0,68649.0,0.21824079]
[1729280279578,0.1688379,68650.0,68649.0,0.21824079]
[1729280281745,0.16883909,68650.0,68649.0,0.21824079]
[1729280283043,0.20131299,68650.0,68649.0,0.21824079]
[1729280283253,0.17966511,68650.0,68649.0,0.21824079]
[1729280283476,0.16883909,68650.0,68649.0,0.21824079]
[1729280287466,0.20132748,68650.0,68649.0,0.21824079]
[1729280289804,0.20132862,68650.0,68649.0,0.21824079]
[1729280291135,0.20134584,68650.0,68649.0,0.21824079]
[1729280292921,0.17968303,68650.0,68649.0,0.21824079]
[1729280293144,0.20135512,68650.0,68649.0,0.21824079]
[1729280293360,0.1688576,68650.0,68649.0,0.21824079]
[1729280294097,0.17969518,68650.0,68649.0,0.21824079]
[1729280295220,0.20137874,68650.0,68649.0,0.21824079]
[1729280298320,0.21872525,68650.0,68649.0,0.21824079]
[1729280298549,0.20137874,68650.0,68649.0,0.21824079]
[1729280298777,0.21872525,68650.0,68649.0,0.21824079]
[1729280299236,0.20137874,68650.0,68649.0,0.21824079]
[1729280299940,0.21872525,68650.0,68649.0,0.21824079]
[1729280300159,0.22038325,68650.0,68649.0,0.21824079]
[1729280300390,0.20303674,68650.0,68649.0,0.21824079]
[1729280301055,0.22038325,68650.0,68649.0,0.21824079]
[1729280301283,0.20303674,68650.0,68649.0,0.21824079]
[1729280301546,0.22037616,68650.0,68649.0,0.21824079]
[1729280303261,0.20303647,68650.0,68649.0,0.21824079]
[1729280303715,0.22037616,68650.0,68649.0,0.21824079]
[1729280303933,0.20303647,68650.0,68649.0,0.21824079]
[1729280304647,0.22037616,68650.0,68649.0,0.21824079]
[1729280304868,0.20303647,68650.0,68649.0,0.21824079]
[1729280305514,0.22037616,68650.0,68649.0,0.21824079]
[1729280305746,0.20303647,68650.0,68649.0,0.21824079]
[1729280306379,0.22037616,68650.0,68649.0,0.21824079]
[1729280306593,0.20303647,68650.0,68649.0,0.21824079]
[1729280307234,0.22037616,68650.0,68649.0,0.21824079]
[1729280307456,0.20303647,68650.0,68649.0,0.21824079]
[1729280308180,0.22037616,68650.0,68649.0,0.21824079]
[1729280308416,0.20303647,68650.0,68649.0,0.21824079]
[1729280309113,0.22037616,68650.0,68649.0,0.21824079]
[1729280309339,0.24632688,68650.0,68649.0,0.21824079]
[1729280309570,0.26366053,68650.0,68649.0,0.21824079]
[1729280310276,0.20301367,68650.0,68649.0,0.29504079]
[1729280310506,0.05405452,68650.0,68649.0,0.29504079]
[1729280310752,0.01334959,68650.0,68649.0,1.01027979]
[1729280310987,0.0119822,68650.0,68649.0,1.46282979]
[1729280311208,0.0119822,68650.0,68649.0,1.40422979]
[1729280311442,0.01733415,68659.0,68651.0,0.081]
[1729280311443,0.02166893,68657.0,68651.0,0.081]
[1729280311682,0.15979331,68656.0,68655.0,0.181]
[1729280311915,0.14895915,68656.0,68655.0,0.2788]
[1729280312351,0.15529383,68656.0,68655.0,0.2788]
[1729280316189,0.0035999,68656.0,68655.0,0.625303]
[1729280316414,0.001658,68661.0,68655.0,2.816365]
[1729280316632,0.001658,68661.0,68657.0,0.1949]
[1729280316857,0.001658,68661.0,68658.0,0.1949]
[1729280316858,0.00029061,68661.0,68658.0,0.1949]
[1729280317078,0.001658,68664.0,68659.0,0.1949]
[1729280317340,0.15592037,68663.0,68660.0,0.1]
[1729280317559,0.15592037,68663.0,68661.0,0.1949]
[1729280317775,0.15592037,68663.0,68662.0,0.1949]
[1729280318865,0.15592037,68663.0,68662.0,0.0949]
[1729280320011,0.00789569,68663.0,68662.0,0.857237]
[1729280320231,0.001658,68664.0,68663.0,0.1]
[1729280320468,0.001658,68664.0,68663.0,4.4221]
[1729280320948,0.001658,68664.0,68663.0,2.529025]
[1729280321185,0.001658,68664.0,68663.0,2.191462]
[1729280321410,0.001658,68664.0,68663.0,0.37998]
[1729280321876,0.15061715,68664.0,68663.0,0.2781]
[1729280322324,0.15851376,68664.0,68663.0,0.2781]
[1729280324159,0.00955461,68664.0,68663.0,0.2781]
[1729280324371,0.001658,68664.0,68663.0,0.2781]
[1729280325494,0.001658,68664.0,68663.0,1.515641]
[1729280325735,0.001658,68664.0,68663.0,3.158117]
[1729280325965,0.001658,68664.0,68663.0,2.750128]
[1729280326440,0.001658,68664.0,68663.0,0.950961]
[1729280326663,0.001658,68664.0,68663.0,0.542756]
[1729280326908,0.001658,68664.0,68663.0,0.2781]
[1729280332137,0.001658,68664.0,68663.0,0.2008]
[1729280332138,0.15061715,68664.0,68663.0,0.2008]
[1729280332611,0.1585461,68664.0,68663.0,0.2008]
[1729280335153,0.17205109,68664.0,68663.0,0.2008]
[1729280335630,0.17205402,68664.0,68663.0,0.2008]
[1729280336072,0.1585461,68664.0,68663.0,0.2008]
[1729280336291,0.17205712,68664.0,68663.0,0.2008]
[1729280339133,0.20450242,68664.0,68663.0,0.2008]
[1729280340062,0.18287196,68664.0,68663.0,0.2008]
[1729280340284,0.1585461,68664.0,68663.0,0.2008]
[1729280340505,0.18290224,68664.0,68663.0,0.2008]
[1729280340721,0.17207729,68664.0,68663.0,0.2008]
[1729280343043,0.17208204,68664.0,68663.0,0.2008]
[1729280345134,0.20457361,68664.0,68663.0,0.2008]
[1729280345378,0.18291256,68664.0,68663.0,0.2008]
[1729280346294,0.2045762,68664.0,68663.0,0.2008]
[1729280348017,0.17208204,68664.0,68663.0,0.2008]
[1729280348918,0.20458439,68664.0,68663.0,0.2008]
[1729280349154,0.20458443,68664.0,68663.0,0.2008]
[1729280350365,0.20458501,68664.0,68663.0,0.2008]
[1729280350627,0.23544602,68664.0,68663.0,0.006]
[1729280350861,0.25800592,68664.0,68663.0,0.006]
[1729280351112,0.23544602,68664.0,68663.0,0.006]
[1729280351345,0.27869393,68664.0,68663.0,0.006]
[1729280352084,0.59708414,68664.0,68663.0,0.006]
[1729280352303,0.49615504,68664.0,68663.0,0.006]
[1729280352526,0.6187081,68664.0,68663.0,0.006]
[1729280353227,0.49615504,68664.0,68663.0,0.006]
[1729280353456,0.60425576,68664.0,68663.0,0.006]
[1729280353692,0.58261505,68664.0,68663.0,0.006]
[1729280353902,0.60425568,68664.0,68663.0,0.006]
[1729280354393,0.60423303,68664.0,68663.0,0.006]
[1729280354650,0.5825924,68664.0,68663.0,0.006]
[1729280355828,0.58275068,68664.0,68663.0,0.006]
[1729280356920,0.47456552,68664.0,68663.0,0.006829]
[1729280358070,0.41122934,68664.0,68663.0,0.006829]
[1729280358320,0.58264945,68664.0,68663.0,0.006829]
[1729280358539,0.58261696,68664.0,68663.0,0.006829]
[1729280358766,0.104,68663.0,68649.0,0.000829]
[1729280359022,0.12425848,68651.0,68649.0,0.000829]
[1729280359237,0.08469986,68650.0,68649.0,0.000829]
[1729280359488,0.07224994,68650.0,68649.0,0.000829]
[1729280359988,0.23185957,68650.0,68649.0,0.000829]
[1729280360231,0.25708318,68650.0,68649.0,0.000829]
[1729280360466,0.24266726,68650.0,68649.0,0.000829]
[1729280360702,0.32909407,68650.0,68649.0,0.000829]
[1729280360927,0.35209407,68650.0,68649.0,0.000829]
[1729280361171,0.10606277,68650.0,68649.0,0.000829]
[1729280361401,0.31981258,68650.0,68649.0,0.000829]
[1729280361848,0.27813398,68650.0,68649.0,0.000829]
[1729280362080,0.30242325,68650.0,68649.0,0.000829]
[1729280362337,0.29808124,68650.0,68649.0,0.000829]
[1729280362558,0.2845872,68650.0,68649.0,0.000829]
[1729280363222,0.24141092,68650.0,68649.0,0.000829]
[1729280364124,0.21982046,68650.0,68649.0,0.000829]
[1729280364343,0.24141092,68650.0,68649.0,0.000829]
[1729280364572,0.20254809,68650.0,68649.0,0.000829]
[1729280364804,0.22413855,68650.0,68649.0,0.000829]
[1729280365430,0.24141092,68650.0,68649.0,0.000829]
[1729280365657,0.21332666,68650.0,68649.0,0.000829]
[1729280365883,0.21980128,68650.0,68649.0,0.000829]
[1729280366105,0.20253677,68650.0,68649.0,0.000829]
[1729280366328,0.21980128,68650.0,68649.0,0.000829]
[1729280366542,0.20253677,68650.0,68649.0,0.000829]
[1729280368551,0.21980128,68650.0,68649.0,0.000829]
[1729280368762,0.20253677,68650.0,68649.0,0.000829]
[1729280369379,0.18904914,68650.0,68649.0,0.000829]
[1729280369576,0.19174436,68650.0,68649.0,0.000829]
[1729280369808,0.20253279,68650.0,68649.0,0.000829]
[1729280370038,0.20253274,68650.0,68649.0,0.000829]
[1729280371941,0.17953274,68650.0,68649.0,0.000829]
[1729280372365,0.17953274,68650.0,68649.0,0.091229]
[1729280373208,0.17323307,68650.0,68649.0,0.091229]
[1729280373681,0.17965525,68650.0,68649.0,0.091229]
[1729280374702,0.20123212,68650.0,68649.0,0.091229]
[1729280375007,0.17965525,68650.0,68649.0,0.091229]
[1729280375437,0.20123212,68650.0,68649.0,0.091229]
[1729280377380,0.1796707,68650.0,68649.0,0.091229]
[1729280377592,0.20124757,68650.0,68649.0,0.091229]
[1729280380371,0.2185337,68650.0,68649.0,0.091229]
[1729280381298,0.20139503,68650.0,68649.0,0.091229]
[1729280381507,0.21871783,68650.0,68649.0,0.091229]
[1729280381714,0.20790556,68650.0,68649.0,0.091229]
[1729280382142,0.2187353,68650.0,68649.0,0.091229]
[1729280382366,0.2187399,68650.0,68649.0,0.091229]
[1729280383439,0.23228151,68650.0,68649.0,0.091229]
[1729280385484,0.23229384,68650.0,68649.0,0.091229]
[1729280387189,0.2467375,68650.0,68649.0,0.091229]
[1729280387588,0.23229384,68650.0,68649.0,0.091229]
[1729280388893,0.1970874,68650.0,68649.0,0.091229]
[1729280389102,0.23233056,68650.0,68649.0,0.091229]
[1729280389317,0.24677422,68650.0,68649.0,0.091229]
[1729280389544,0.24682956,68650.0,68649.0,0.091229]
[1729280389755,0.2894813,68650.0,68649.0,0.091229]
[1729280390448,0.2260477,68650.0,68649.0,0.091229]
[1729280390662,0.33919889,68650.0,68649.0,0.091229]
[1729280390873,0.24684226,68650.0,68649.0,0.091229]
[1729280391711,0.27561677,68650.0,68649.0,0.091229]
[1729280392138,0.23238209,68650.0,68649.0,0.091229]
[1729280392376,0.27561677,68650.0,68649.0,0.168529]